Workbook

Sheet Tabelle1
A1: Berater/Mandant/Personalnummer | G1: Werte
A2: 1. Schritt | B2: Grunddaten des Arbeitnehmers | G2: aus KUG Tabelle
B3: wöchentliche Arbeitszeit | E3: 40 | G3: (pauschaliertes) | I3: Eingabefelder
B4: hochgerechnete monatliche Arbeitszeit | E4: =E3*4.33333333333333 -> 173.3333333
B5: Aufallstunden KUG | E5: 100
B7: davon Ausfallstundne Feiertag | E7: 16
A9: 2. Schritt | B9: Berechnung Sollentgelt = Summe der Werte unten: | F9: =SUM(E12:E16) -> 2815 | G9: 1123.98 | H9: Wert aus den Abrechnungsdaten des Arbeitnehmers ablesen
B10: Lohnarten, die als Sollentgelt zugeordnet sind
B11: ungekürzte Lohnbestandteile:
B12: =B34 -> Gehalt | E12: 2000
B13: Zulage zum Gehalt | E13: 500
B14: Direktversicherung / mtl / Entgeltverzicht | E14: -100
B15: Dienstwagen | E15: 415
A17: 3. Schritt | B17: Berechnung des Ist-Entgeltes (3.1. ohne Feiertag)= Summe der Werte unten: | F17: =SUM(E22:E26) -> 1372.66 | G17: 637.2 | H17: Wert aus den Abrechnungsdaten des Arbeitnehmers ablesen
A18: 3.1. | B18: zunächst ohne Berücksichtigung des Feiertages
B19: Lohnarten die unter > Abrechnung > Einstellungen > Kurzarbeit als Ist-Entgelt zugeordnet sind:
B20: jeweils die nach der Kürzung verbleibenden Beträge:
B22: Restbetrag des Gehaltes | E22: 846.13
B23: Rest Zulage zum Gehalt | E23: 211.53 | G23: =G9-G17 -> 486.78 | H23: KUG ohne Berücksichtigung des Feiertages = Wert aus Tabelle für Sollentgelt abzüglich Wert aus Tabelle für Istentgelt
B24: Direktversicherung / mtl / Entgeltverzicht | E24: -100
B25: Dienstwagen | E25: 415
A27: 3.2. | B27: Berechnung des Ist-Entgeltes (inkl. Feiertagsvergütung Punkt 5) | F27: =F40+F17 -> 1603.429231 | G27: 715.03 | H27: Wert aus den Abrechnungsdaten des Arbeitnehmers ablesen
A28: (aus 5.) | B28: zuzüglich Feiertagsvergütung (Wert aus Punkt 5)
A30: 4. Schritt | B30: Berechnung des Stundenlohns für die Feiertagsvergütung (volle Höhe)
B31: Lohnarten
B32: > Abrechnung > Einstellungen > Kürzungen mit > Kürzung WAG/KUG = X
B33: (jeweils mit vollem Wert!)
B34: Gehalt | E34: =E12 -> 2000
B35: Zulage zum Gehalt | E35: =E13 -> 500
B36: Summe | E36: =SUM(E34:E35) -> 2500
B37: geteilt durch hochgerechnete Arbeitszeit | E37: =E4 -> 173.3333333
B38: ergibt Wert pro Stunde für Feiertag | E38: =E36/E37 -> 14.42307692
A40: 5. Schritt | B40: Berechnung der Feiertagsvergütung für Istentgelt | F40: =E38*E7 -> 230.7692308
B41: mit Wert aus Schritt 4) (Stunden x Feiertagsstunden)
A43: 6. Schritt | B43: Berechnung der Feiertagsvergütung in Höhe von KUG
B44: Pauschaliertes Nettoentgelt (Sollentgelt) - Wert aus KUG-Tabelle | G44: =G9 -> 1123.98
A45: abzgl. | B45: (pauschal. Istentgelt aus Punkt 3.1) ohne Feiertagsvergütung) | G45: =G17 -> 637.2
B46: Differenz = KUG (ohne Feiertagsvergütung) | G46: =G44-G45 -> 486.78
B47: geteilt durch die KUG Stunden | G47: =E5 -> 100
B48: Betrag pro Stunde | G48: =G46/G47 -> 4.8678
B49: dieser Wert wird gerundet | G49: =ROUND(G48,2) -> 4.87
B50: ergibt eine Feiertagsvergütung in Höhe von | G50: =G49*E7 -> 77.92
A52: 7. Schritt | B52: Berechnung des Kurzarbeitergeld inkl. Feiertagsvergütung
B53: pauschaliertes Nettoentgelt (Sollentgelt) aus Punkt 2) | G53: =G9 -> 1123.98
B54: abzüglich pauschaliertes Nettoentgelt (Istentgelt) aus Punkt 3.2) | G54: =G27 -> 715.03
B55: KUG inkl. Berücksichtigung des Feiertages | G55: =G53-G54 -> 408.95
